Cogmind - Beta 13 @@@ ROGUE MODE // 2024.06.10 @ 22:16:10 Player: ZergFTW Result: Destroyed by Y-45 Defender with Heavy Assault Rifle Performance ------------- Evolutions (2) 1000 Regions Visited (3) 600 Robots Destroyed (46) 230 Value Destroyed (987) 987 Prototype IDs (2) 40 Alien Tech Used (0) 0 Bonus (8) 8 TOTAL SCORE: 2865 Bonus ------- High Alert Combat Kills 8 Cogmind --------- Core Integrity 0/550 Matter 12/300 Energy 158/160 System Corruption 0% Temperature Cool (15) Movement Flying (34) Location -8/Materials Parts ------- > --- POWER (1) -------- Light Nuclear Core > --- PROPULSION (4) --- Improved Flight Unit Improved Flight Unit Improved Flight Unit > --- UTILITY (4) ------ (None) > --- WEAPON (2) ------- Missile Launcher > --- INVENTORY (5) ---- Improved Flight Unit Hardlight Generator Peak State ------------ > --- POWER ------------ Light Ion Engine > --- PROPULSION ------- Improved Flight Unit Improved Flight Unit > --- UTILITY ---------- Improved Terrain Scanner Reaction Control System > --- WEAPON ----------- EM Pulse Gun Heavy Particle Gun > --- INVENTORY -------- Light Nuclear Core Hover Unit Missile Launcher [Rating: 18] Favorites ----------- Power Light Ion Engine Engine Light Ion Engine Power Core Light Nuclear Core Propulsion Compact Wheel Wheel Compact Wheel Hover Unit Hover Unit Flight Unit Improved Flight Unit Utility Structural Scanner Device Structural Scanner Storage Small Storage Unit Weapon Light Cannon Energy Gun Heavy EM Pulse Gun Ballistic Gun Light Assault Rifle Ballistic Cannon Light Cannon Launcher Grenade Launcher Special Weapon Mining Laser Build | -11 -10 -10 -8 ------- Run | Yrd Mat Sub Mat Slots Evolved 4 | . . . 4 Power . | . . . . Propulsion 2 | . . . 2 Utility 2 | . . . 2 Weapon . | . . . . Parts Attached 54 | 9 23 1 21 Power 5 | 1 1 . 3 Engine 3 | 1 1 . 1 Core 2 | . . . 2 Reactor . | . . . . Propulsion 13 | 3 5 . 5 Treads . | . . . . Leg . | . . . . Wheel 6 | 3 3 . . Hover 3 | . 2 . 1 Flight 4 | . . . 4 Utility 8 | 2 4 . 2 Device 5 | 1 2 . 2 Storage 3 | 1 2 . . Processor . | . . . . Hackware . | . . . . Protection . | . . . . Artifact . | . . . . Weapon 28 | 3 13 1 11 Energy Gun 13 | 1 5 . 7 Energy Cannon . | . . . . Ballistic Gun 3 | 1 2 . . Ballistic Cannon 5 | . 3 1 1 Launcher 6 | . 3 . 3 Special Weapon 1 | 1 . . . Impact Weapon . | . . . . Slashing Weapon . | . . . . Piercing Weapon . | . . . . Special Melee Weapon . | . . . . Unidentified Prototypes 2 | . . . 2 Parts Lost 18 | . 7 . 11 Power 3 | . 1 . 2 Propulsion 4 | . 2 . 2 Utility 4 | . 2 . 2 Weapon 7 | . 2 . 5 Highest Loss Streak 5 | . 5 . 5 To Critical Strikes . | . . . . Average Slot Usage (%) 74 | . 90 40 35 Engine 10 | . 14 . 3 Wheel 13 | . 16 14 2 Hover 6 | . 8 . . Flight 2 | . . . 9 Device 14 | . 19 . 3 Storage 1 | . 2 . . Energy Gun 10 | . 13 . 4 Ballistic Gun 1 | . 1 . . Ballistic Cannon 8 | . 9 12 2 Launcher 4 | . 2 14 4 Naked Turns . | . . . . Heaviest Build 22 | 14 22 6 11 Greatest Support 32 | 32 32 16 16 Greatest Overweight (x) 3 | 1 3 . 2 Average Overweight (x) . | . . . . Largest Inventory Capacity 10 | 8 10 5 5 Average Capacity 5 | 7 5 5 5 Most Carried 10 | 7 10 5 5 Average Carried 4 | 3 5 4 3 Final Capacity 8 | 8 5 5 5 Final Carried 7 | 7 5 4 2 Class Distribution -------------------- 100% | Mutant Dominant Class ---------------- Mutant | -10/Materials Mutant | -10/Subcaves Mutant | -8/Materials Resources | -11 -10 -10 -8 ----------- Run | Yrd Mat Sub Mat Matter Collected 865 | 316 455 . 94 Remotely . | . . . . Salvage Created 1048 | 169 597 . 282 Parts 73 | 10 47 . 16 Haulers Intercepted 2 | . 1 . 1 Recyclers Shooed 1 | . 1 . . Parts Field Recycled . | . . . . Retrieved Matter . | . . . . Parts Self-Destructed . | . . . . Prevented . | . . . . Kills | -11 -10 -10 -8 ------- Run | Yrd Mat Sub Mat Combat Hostiles Destroyed 22 | . 12 . 10 Guns 9 | . 7 . 2 Cannons 1 | . 1 . . AOE 12 | . 4 . 8 Classes Destroyed 11 | 3 6 . 2 Worker 2 | 2 . . . Builder 5 | . 4 . 1 Tunneler 4 | 4 . . . Hauler 2 | . 1 . 1 Recycler 3 | 1 2 . . Mechanic 2 | . 1 . 1 Watcher 6 | . 3 . 3 Swarmer 7 | . 3 . 4 Grunt 13 | . 9 . 4 Brawler 1 | . . . 1 Sentry 1 | . . . 1 Best Kill Streak 6 | 2 4 . 6 Combat Bots Only 4 | . 4 . 4 Max Kills in Single Turn 3 | 1 2 . 3 Gunslinging . | . . . . Exploded 2 | . 1 . 2 Melee . | . . . . Uniques/NPCs Destroyed . | . . . . Combat | -11 -10 -10 -8 -------- Run | Yrd Mat Sub Mat Hostile Shots Fired 157 | . 41 . 116 Missed 62 | . 14 . 48 Damage Taken 1762 | . 538 . 1224 Core 662 | . 107 . 555 Absorbed by Shields . | . . . . Core Remaining (%) 78 | 100 . 57 . Volleys Fired 97 | 17 56 . 24 Largest 2 | 2 2 . 2 Hottest 150 | 150 90 . 100 Shots Fired 137 | 20 90 . 27 Gun 75 | 17 50 . 8 Cannon 27 | . 27 . . Launcher 32 | . 13 . 19 Special 3 | 3 . . . Kinetic 38 | . 38 . . Thermal 24 | 20 . . 4 Explosive 32 | . 13 . 19 Electromagnetic 43 | . 39 . 4 Robot Hit Streak 9 | 9 6 . 5 Robot Miss Streak 8 | 1 8 . 1 Penetration Max . | . . . . Secondary Targets . | . . . . Shots Hit Robots 58 | 16 33 . 9 Core Hits 74 | 8 37 . 29 Critical Kills . | . . . . Critical Parts Destroyed . | . . . . Critical Strikes 1 | . 1 . . Corrupt 1 | . 1 . . Melee Attacks . | . . . . Impact . | . . . . Slashing . | . . . . Piercing . | . . . . Sneak Attacks . | . . . . Combat Hostiles . | . . . . Follow-up Attacks . | . . . . Damage Inflicted 3808 | 221 1523 . 2064 Guns 724 | 173 481 . 70 Cannons 143 | . 143 . . Explosions 2893 | . 899 . 1994 Melee . | . . . . Ramming . | . . . . Kinetic 191 | . 191 . . Thermal 428 | 221 99 . 108 Explosive 2729 | . 800 . 1929 Electromagnetic 460 | . 433 . 27 Impact . | . . . . Slashing . | . . . . Piercing . | . . . . Highest Corruption 2 | . 2 2 . Average Corruption 1 | . 1 2 . Corruption Purged . | . . . . Corruption Blocked . | . . . . Effects 6 | . 5 1 . Message Errors 2 | . 2 . . Heat Flow Errors 2 | . 1 1 . Energy Discharges 2 | . 2 . . Overload Shots . | . . . . Overflow Damage 194 | . 128 . 66 Projectiles . | . . . . Explosions 194 | . 128 . 66 Melee . | . . . . Knockbacks 1 | . 1 . . Impact . | . . . . Kinetic 1 | . 1 . . Secondary . | . . . . Self-Inflicted Damage 392 | . 240 . 152 Shots 6 | . 3 . 3 Rammed . | . . . . Targets Rammed . | . . . . Kicked . | . . . . Crushed . | . . . . Highest Temperature 217 | 100 217 190 54 Average Temperature 54 | 34 64 100 14 Received Heat Transfer 399 | . 147 . 252 Siege Activations . | . . . . Robots Corrupted . | . . . . Combat Hostiles . | . . . . Parts Fried . | . . . . Impact Corruptions . | . . . . Robots Melted . | . . . . Combat Hostiles . | . . . . Parts Melted . | . . . . Heat Transferred 942 | 618 150 . 174 Parts Sabotaged . | . . . . Parts Stolen . | . . . . Parts Stripped . | . . . . Power Chain Reactions 2 | . 2 . . Alert | -11 -10 -10 -8 ------- Run | Yrd Mat Sub Mat Peak Influence 726 | 35 535 . 726 Initial 110 | . 22 . 110 Average 279 | 16 302 . 350 Maximum Alert Level 3 | . 2 . 3 Low Security (%) 37 | 100 29 . 28 Level 1 44 | . 55 . 35 Level 2 17 | . 15 . 34 Level 3 . | . . . 1 Level 4 . | . . . . Level 5 . | . . . . High Security . | . . . . Max Security . | . . . . Squads Dispatched 8 | . 3 . 5 Investigation 2 | . 2 . . Extermination . | . . . . Reinforcement 3 | . 1 . 2 Assault . | . . . . Garrison 3 | . . . 3 Intercept . | . . . . Searches Triggered . | . . . . Construction Impeded . | . . . . Haulers Reinforced . | . . . . Active Scanning Responses . | . . . . Cargo Convoy Interrupts . | . . . . Stealth | -11 -10 -10 -8 --------- Run | Yrd Mat Sub Mat Distress Signals 4 | . 1 . 3 Communications Jammed . | . . . . Distress Signals . | . . . . Times Spotted 55 | . 23 . 32 Peak Tracking Total 12 | . 4 . 12 Tactical Retreats 4 | . . . 4 Traps | -11 -10 -10 -8 ------- Run | Yrd Mat Sub Mat Traps Triggered 1 | . 1 . . Indirectly . | . . . . Trap Hack Attempts . | . . . . Triggered . | . . . . Disarmed . | . . . . Reprogrammed . | . . . . Reused . | . . . . Traps Extracted . | . . . . Installed . | . . . . Triggered . | . . . . Machines | -11 -10 -10 -8 ---------- Run | Yrd Mat Sub Mat Machines Disabled 9 | . 5 . 4 Max in Single Turn 2 | . 2 . 2 Machines Repaired . | . . . . Machines Dismantled . | . . . . Machines Sabotaged . | . . . . Overloaded Fab Kills . | . . . . Hacking | -11 -10 -10 -8 --------- Run | Yrd Mat Sub Mat Machines Accessed 6 | . 4 . 2 Terminals 5 | . 3 . 2 Fabricators . | . . . . Repair Stations 1 | . 1 . . Recycling Units . | . . . . Scanalyzers . | . . . . Garrison Access . | . . . . Total Hacks 15 | . 12 . 3 Successful 8 | . 7 . 1 Failed 7 | . 5 . 2 Catastrophic 1 | . . . 1 Database Lockouts . | . . . . Manual . | . . . . Terminals 11 | . 8 . 3 Fabricators . | . . . . Repair Stations 4 | . 4 . . Recycling Units . | . . . . Scanalyzers . | . . . . Garrison Access . | . . . . Terminal Hacks 6 | . 5 . 1 Record 2 | . 1 . 1 Alert Level 1 | . 1 . . Locate Traps 2 | . 2 . . Maintenance Status 1 | . 1 . . Fabricator Hacks . | . . . . Repair Station Hacks 2 | . 2 . . Scan Component 1 | . 1 . . Repair 1 | . 1 . . Recycling Unit Hacks . | . . . . Scanalyzer . | . . . . Garrison Access Hacks . | . . . . Unauthorized Hacks . | . . . . Terminals . | . . . . Fabricators . | . . . . Repair Stations . | . . . . Recycling Units . | . . . . Scanalyzers . | . . . . Garrison Access . | . . . . Data Cores Recovered . | . . . . Used . | . . . . Hacking Detections 5 | . 4 . 1 Full Trace Events 2 | . 2 . . Feedback Events 1 | . 1 . . Corruption 1 | . 1 . . Feedback Blocked . | . . . . Robot Schematics Acquired . | . . . . Robots Built . | . . . . Authchips . | . . . . Time . | . . . . Total Robot Build Rating . | . . . . Part Schematics Acquired . | . . . . Parts Built . | . . . . Authchips . | . . . . Time . | . . . . Total Part Build Rating . | . . . . Parts Repaired . | . . . . Time 36 | . 36 . . Parts Recycled . | . . . . Recycled Matter . | . . . . Retrieved Matter . | . . . . Retrieved Components . | . . . . Parts Scanalyzed . | . . . . Part Schematics Acquired . | . . . . Parts Damaged . | . . . . Bothacking | -11 -10 -10 -8 ------------ Run | Yrd Mat Sub Mat Used RIF Installer . | . . . . Robots Hacked . | . . . . Non-combat . | . . . . Combat . | . . . . Robot Hacks Applied . | . . . . Relay Couplers Released . | . . . . Fabnet Peak Effective % . | . . . . Robots Rewired . | . . . . Allies Hacked . | . . . . Hacks Repelled . | . . . . Allies | -11 -10 -10 -8 -------- Run | Yrd Mat Sub Mat Total Allies . | . . . . Largest Group . | . . . . Highest-Rated Group . | . . . . Highest-Rated Ally . | . . . . Total Orders . | . . . . Ally Attacks . | . . . . Total Damage . | . . . . Kills . | . . . . Allies Corrupted . | . . . . Allies Melted . | . . . . Intel | -11 -10 -10 -8 ------- Run | Yrd Mat Sub Mat Robot Analysis Total . | . . . . Derelict Logs Recovered . | . . . . Drone Launches . | . . . . Drone Recoveries . | . . . . Exploration | -11 -10 -10 -8 ------------- Run | Yrd Mat Sub Mat Turns Passed 1597 | 172 1004 110 311 Spaces Moved 1395 | 113 832 50 400 Core 41 | 16 5 . 20 Treads . | . . . . Legs . | . . . . Wheels 786 | 97 568 50 71 Hover 259 | . 259 . . Flight 309 | . . . 309 Fastest Speed 34 | 50 56 100 34 Average Speed 77 | 92 86 100 52 Slowest Speed 240 | 100 240 100 150 Overloaded Moves . | . . . . Propulsion Burnouts . | . . . . Robots Hopped 2 | . . . 2 Cave-ins Triggered . | . . . . Exploration Rate (%) 38 | 5 98 3 47 Regions Visited 3 Branch Regions 1 Pre-discovered Areas 1 | . . 1 . Known Exits Taken . | . . . . Unknown Exits Taken 3 | 1 1 1 . Scrap Searched . | . . . . Spaces Dug 34 | . 5 . 29 Terrain Destroyed 304 | . 111 . 193 Melee . | . . . . Projectile . | . . . . AOE 304 | . 111 . 193 Terrain Rammed . | . . . . Walls Destroyed . | . . . . Machines Disabled . | . . . . Actions | -11 -10 -10 -8 --------- Run | Yrd Mat Sub Mat Total 1764 | 154 1031 110 469 Wait 157 | . 84 60 13 Move 1388 | 112 831 49 396 Hop 2 | . . . 2 Pick Up 39 | 14 16 . 9 Fast Attach 9 | 1 5 . 3 Attach 27 | 6 6 1 14 Detach 4 | . 1 . 3 Swap 18 | 2 12 . 4 Drop 23 | 2 20 . 1 Fire 97 | 17 56 . 24 Melee . | . . . . Ram . | . . . . Kick . | . . . . Crush . | . . . . Escape Stasis . | . . . . Rewire . | . . . . Trap . | . . . . Miscellaneous . | . . . . Route ------- -11/Scrapyard -10/Materials (discovered 6 exits: [*Mat x3] / [*Min x2] / [*Sub]) -10/Subcaves -8/Materials (discovered 1 exit: [*Fac]) History --------- Turn | Location | Event 8 | -11/Scrapyard | Discovered new exit (range 16) 173 | -11/Scrapyard | Entered Materials 394 | -10/Materials | Build established: Mutant 459 | -10/Materials | Discovered new exit (range 12) 517 | -10/Materials | Discovered new exit (range 11) 615 | -10/Materials | Discovered new exit (range 15) 752 | -10/Materials | Discovered new exit (range 6) 1014 | -10/Materials | Discovered new exit (range 15) 1129 | -10/Materials | Discovered new exit (range 10) 1177 | -10/Materials | Entered Subcaves 1193 | -10/Subcaves | Discovered new exit (range 5) 1196 | -10/Subcaves | Learned location of Zion (-7) 1196 | -10/Subcaves | Met a Zionite searching for "candidates" 1206 | -10/Subcaves | Lost 5 parts (1p1n2u1w) 1287 | -10/Subcaves | Entered Materials 1287 | -8/Materials | Evolved 4 slots: Propulsion x2, Utility x2 1367 | -8/Materials | Garrison activated, responded to threat 1410 | -8/Materials | Core integrity fell below 50% 1437 | -8/Materials | Lost 5 parts (1p1n3w) 1497 | -8/Materials | Discovered new exit (range 10) 1581 | -8/Materials | Core integrity fell below 20% 1585 | -8/Materials | Lost 5 parts (1p1n2u1w) 1598 | -8/Materials | Destroyed by Y-45 Defender with Heavy Assault Rifle Last Messages --------------- 01549_ S-10 Pest destroyed. 01550_ Penetrated by Slug. 01550_ Reaction Control System destroyed. 01550_ Knocked back. 01551_ S-10 Pest destroyed. 01551_ U-05 Engineer lays Concrete. 01552_ Slug penetrates Wall. 01552_ U-05 Engineer lays Concrete. 01554_ U-05 Engineer builds a Door. 01554_ Imp. Terrain Scanner destroyed. 01559_ Acquired Imp. Flight Unit. 01569_ Dropped Hover Unit. 01577_ S-10 Pest destroyed. 01580_ Fusion Modulator explodes. 01581_ Knocked back. 01581_ Acquired 7 matter. 01585_ Hvy. Particle Gun destroyed. 01585_ Acquired 3 matter. 01595_ Acquired Hardlight Generator. 01598_ U-05 Engineer lays Concrete. Map ----- +----------------------------------------------------+ | ???????????????????????????????????????????????# | | ????????????????????????????????????????????#??# | | ???????????????????????????????????????????????# | | ???????????????????????????????????????????????# | | ???????????????????????????????????????????????# | | ???????????????????????????????????????????????# | | ?????????????????????????????????????#?????????# | | ?????????????????????????????????????? ????????# | | ???????????????????????????????????????????????# | | ???????????????????????????????????????????????# | | ???????????????????????? ?????????#???????????# | | ???????????????????????? ?????????????????????# | | ???????????????????????# ??????????????##+##### | | ???????????????????????# ??????????##### | | ???????????????????????t ?????? ???+ | | ???????????????????????# ???"" ""??##### | | ???????????????????????# ??""" """ #######+###### | | ???????????????????????# #?""" """ # #???? | | ???????????????????????# # # """ #???? | | ???????????????????????# # # """ #???? | | ???????????????????????# # """ #???? | | ???????????????????????# ##### | | ???????????????????????# ## #+## ## [ | | ???????????????????????# # u # +####### | | ?????????????????####### Y % ## = | | ?????????? r @ % "" == | | ?????????????????######### != =## == | | ?????????????????????????## ##+## =! ## | | ?????????????????????????# # ! ""##" | | ?????????????????????????# ### | | ?????????????????????????# ###* | | ?????????????????????????# #?# """ #"""" | | ?????????????????????????# #?# """ ##" | | ?????????????????????????# """ """ #?# """ # " | | ?????????????????????????# """ """ ### H # " | | ?????????????????????????# """ """ # " | | ?????????????????????????######### +##+###" | | ?????????????????????????????????# = ##" | | ?????????????????????????????????# ####" | | ?????????????????????????????????# / = #??## | | ?????????????????????????????????## / #???? | | ??????????????????????????????????## # ######???? | | | | | | | | | | | | | | | | | +----------------------------------------------------+ Best States ------------- Heat Dissipation 31 Energy Generation 14 Energy Capacity 250 Matter Stores 300 Matter Capacity 300 Sight Range 16 Robot Scan Range 14 Terrain Scan Range 16 Terrain Scan Density 10 Evasion (%) 70 Item Schematics ----------------- None Robot Schematics ------------------ None Fabricated ------------ Nothing Alien Tech Used ----------------- None Achievements -------------- Troublemaker Challenges ------------ None Game ------ Seed MachineGodMapper Manual? 0 Play Time 00:37:52 Cumulative 12.2 hours Start 2024.06.10 @ 21:39:44 End 2024.06.10 @ 22:16:10 Sessions 1 Manual Loads 0 Difficulty Rogue Special Mode None Game No. 10 Rogue 9 Adventurer 1 Explorer 0 Win Type - Total 0 Types 0/0/0/0/0/0/0/0/0 Lore% 14 Gallery% 8 Achievement% 13 Wizard Run 0 Options --------- Layout 1 ASCII 0 Keyboard 0 Movement Mouse Keybinds 0 Fullscreen 2 Font 24/Proggy Map View 76x35 Zoom Use 0% Tactical HUD 1 Map Filters NONE Filters NONE Steam 1 RUN: 45230b9c-4013-43d2-859b-9483584a8ae4